bitfinex-derivatives/quotes_ETHF0:USTF0_20251013
["timestamp","ask_amount","ask_price","bid_price","bid_amount"]
[1760362964534,3.2078,4118.0,4117.5,0.292]
[1760362964831,0.00184378,4118.0,4117.6,0.292]
[1760362965034,3.2078,4118.6,4118.4,0.43671]
[1760362965220,3.2078,4118.6,4118.5,0.292]
[1760362965533,3.2078,4119.6,4119.0,3.227]
[1760362965832,3.2078,4119.6,4119.1,0.292]
[1760362966028,0.43666,4119.0,4117.9,0.43677]
[1760362966230,3.1839,4119.5,4118.0,0.292]
[1760362966231,3.2078,4118.7,4118.0,0.292]
[1760362966533,3.16552851,4118.9,4118.5,0.4367]
[1760362966827,3.2078,4119.2,4118.6,0.292]
[1760362967028,0.00250976,4119.6,4119.1,0.43664]
[1760362967331,0.00250976,4119.6,4119.5,0.4366]
[1760362967531,3.1841,4120.8,4119.6,3.3905]
[1760362967532,0.4365,4120.5,4119.6,3.3905]
[1760362967832,0.43652,4120.3,4119.7,0.292]
[1760362968023,0.43651,4120.4,4119.7,0.292]
[1760362968226,0.43651,4120.4,4119.6,0.43658]
[1760362968227,3.2078,4120.6,4119.8,0.292]
[1760362968422,0.00270442,4120.6,4120.4,0.4365]
[1760362968627,3.2078,4121.6,4121.0,0.43644]
[1760362968830,3.2078,4121.6,4119.5,13.37925183]
[1760362968831,3.2078,4121.6,4121.3,3.3905]
[1760362969027,3.2078,4122.1,4121.5,3.3905]
[1760362969226,3.64413,4122.1,4121.5,3.3685]
[1760362969528,0.00222301,4122.1,4121.6,0.43638]
[1760362969734,0.43634,4122.0,4121.4,0.292]
[1760362969927,0.43639,4121.5,4121.2,3.2078]
[1760362970137,3.2078,4122.0,4121.2,3.2078]
[1760362970138,0.43637,4121.8,4121.3,0.292]
[1760362970331,0.43637,4121.8,4119.7,1.09145]
[1760362970332,6.36813462,4121.4,4120.6,3.2078]
[1760362970533,0.43659,4119.6,4119.5,0.00191183]
[1760362970832,10.91164,4120.9,4119.5,0.00191183]
[1760362970833,3.2078,4120.6,4119.5,0.29391183]
[1760362971026,0.43656,4119.9,4119.7,3.2078]
[1760362971232,3.2078,4120.6,4119.5,1.66471183]
[1760362971233,0.43659,4119.6,4119.5,0.00191183]
[1760362971427,0.43659,4119.6,4119.5,0.29391183]
[1760362971628,3.2078,4120.1,4119.6,3.3905]
[1760362971828,3.2078,4120.1,4119.5,0.29391183]
[1760362971829,0.43659,4119.6,4119.5,0.00191183]
[1760362972128,9.98937904,4119.6,4119.5,0.29291183]
[1760362972323,6.78327904,4119.6,4119.5,0.00191183]
[1760362972528,6.78327904,4119.6,4119.5,0.29291183]
[1760362972724,6.78327904,4119.6,4118.1,0.43674]
[1760362972725,9.55278904,4119.6,4118.1,3.2078]
[1760362972925,3.2078,4119.0,4118.2,3.6815]
[1760362973125,3.2078,4119.0,4118.1,3.2078]
[1760362973126,1.09169,4118.8,4118.1,3.2078]
[1760362973332,0.43674,4118.2,4118.1,3.2078]
[1760362973525,0.43674,4118.2,4118.1,3.4988]
[1760362973835,3.2078,4119.0,4118.2,3.3905]
[1760362974035,1.09135,4120.2,4118.1,3.50113567]
[1760362974036,3.2078,4120.2,4118.8,3.3905]
[1760362974230,3.2078,4120.2,4119.4,3.3905]
[1760362974533,3.2078,4120.2,4119.6,3.3905]
[1760362974736,3.10362944,4120.1,4119.7,0.291]
[1760362975029,0.00223174,4120.1,4119.9,0.43655]
[1760362975426,3.19315689,4120.0,4119.1,3.3905]
[1760362975634,3.19315689,4120.0,4119.8,0.43656]
[1760362975830,3.19315689,4120.0,4119.9,0.291]
[1760362975831,6.39925689,4120.0,4119.9,0.291]
[1760362976138,0.00223174,4120.1,4120.0,0.43655]
[1760362976833,0.00223174,4120.1,4120.0,0.291]
[1760362976834,6.38471286,4120.1,4120.0,0.291]
[1760362977132,6.38471286,4120.1,4120.0,0.72755]
[1760362977133,3.17861286,4120.1,4120.0,0.72755]
[1760362977332,0.00223174,4120.1,4120.0,6.5983]
[1760362977634,3.18135268,4120.1,4119.0,3.2078]
[1760362977935,3.2061,4121.7,4119.7,3.3905]
[1760362978123,3.2078,4122.0,4121.2,3.2078]
[1760362978329,3.2078,4122.0,4121.8,0.43635]
[1760362978525,3.2078,4122.5,4122.3,0.4363]
[1760362978730,1.09026,4124.3,4121.4,1.091]
[1760362978731,6.4139,4123.0,4121.4,1.091]
[1760362979028,0.00281397,4123.0,4122.8,0.43625]
[1760362979229,3.97e-06,4123.0,4122.9,3.6815]
[1760362979625,3.97e-06,4123.0,4122.5,3.2078]
[1760362979930,3.2078,4122.9,4122.7,0.43626]
[1760362980235,3.2078,4122.9,4122.8,0.291]
[1760362980434,3.97e-06,4123.0,4122.8,4.11775]
[1760362980740,3.2078,4125.1,4124.5,0.43607]
[1760362980936,3.2078,4125.8,4125.0,1.3708]
[1760362981238,3.21235852,4126.2,4126.1,3.3905]
[1760362981440,3.21235852,4127.0,4126.1,3.3905]
[1760362981632,3.2078,4127.5,4126.5,11.98623]
[1760362981834,4.6552,4129.4,4127.9,0.43571]
[1760362982134,4.6552,4129.4,4126.1,10.89999593]
[1760362982135,3.2833,4129.1,4128.0,0.291]
[1760362982340,1.3719,4129.4,4128.1,0.291]
[1760362982533,11.94572,4131.6,4126.3,1.08969]
[1760362982732,3.2833,4129.1,4126.8,11.462]
[1760362982932,3.2833,4129.1,4126.9,0.291]
[1760362983139,1.3719,4129.2,4125.8,10.89827]
[1760362983140,3.2833,4127.9,4127.0,0.291]
[1760362983341,3.2833,4127.9,4125.9,23.44694]
[1760362983643,1.3719,4126.8,4126.2,0.291]
[1760362984130,1.80773,4126.8,4126.4,3.2078]
[1760362984333,1.80773,4126.8,4126.2,0.291]
[1760362984334,3.2833,4126.5,4126.2,0.291]
[1760362984531,1.3719,4125.6,4125.1,3.2078]
[1760362984736,3.2833,4125.5,4125.3,3.2078]
[1760362984944,3.2833,4125.5,4123.6,10.90423]
[1760362984945,3.2833,4125.5,4124.6,3.2078]
[1760362985145,3.2833,4125.5,4125.1,3.2078]
[1760362985447,0.43599,4125.3,4125.1,3.2078]
[1760362985740,1.3719,4124.4,4123.8,3.2078]
[1760362985937,4.6552,4124.4,4123.9,0.291]
[1760362986137,3.2833,4124.2,4123.9,0.291]
[1760362986338,3.17791174,4124.3,4123.9,0.291]
[1760362986541,6.39342394,4124.1,4123.9,3.4988]
[1760362986840,6.39342394,4124.1,4123.9,3.50106459]
[1760362986841,3.2833,4124.1,4123.9,3.50106459]
[1760362987038,0.4361,4124.2,4123.9,0.00226459]
[1760362987248,6.39342394,4124.0,4123.9,0.00226459]
[1760362987434,3.11012394,4124.2,4122.7,3.2078]
[1760362987639,3.11012394,4124.2,4122.2,3.2105]
[1760362987640,3.20073841,4124.0,4123.4,3.2078]
[1760362987845,3.20073841,4124.0,4123.8,0.43614]
[1760362988139,11.98818017,4126.5,4124.3,0.43609]
[1760362988140,3.71929,4125.3,4124.3,0.43609]
[1760362988348,3.2833,4125.5,4124.8,0.43603]
[1760362988543,3.1152743,4125.2,4124.9,0.291]
[1760362988736,3.2833,4125.1,4125.0,0.291]
[1760362989244,6.3985743,4125.1,4125.0,0.291]
[1760362989441,6.3985743,4125.1,4125.0,0.72702]
[1760362989640,3.2833,4125.9,4125.3,0.43598]
[1760362989836,6.4911,4126.0,4125.7,0.43594]
[1760362990040,6.47918001,4125.9,4125.8,0.291]
[1760362990342,3.2833,4125.9,4125.8,0.291]
[1760362990643,0.7774,4126.4,4126.3,0.43588]
[1760362990940,0.7774,4126.4,4126.3,0.72688]
[1760362991148,0.27581,4126.4,4126.3,3.93738]
[1760362991349,3.2833,4127.5,4126.3,3.93738]
[1760362991534,3.2078,4128.1,4126.4,3.2105]
[1760362991935,3.6435,4128.1,4126.4,3.2105]
[1760362992143,3.2078,4128.1,4126.4,3.2105]
[1760362992345,1.08875,4130.0,4127.4,1.08941]
[1760362992346,3.2078,4128.6,4127.4,1.08941]
[1760362992541,3.2833,4129.0,4128.2,3.2078]
[1760362992747,3.2833,4129.0,4127.5,1.37939]
[1760362992748,0.43556,4129.4,4128.7,3.2078]
[1760362992941,0.43556,4129.4,4128.8,0.29]
[1760362993246,0.43556,4129.4,4127.2,3.2078]
[1760362993247,0.43573,4127.7,4127.2,3.2078]
[1760362993449,3.2833,4127.3,4127.2,0.00304355]
[1760362993640,0.43579,4127.2,4126.6,3.2078]
[1760362993838,3.2833,4127.3,4125.4,1.08994]
[1760362993839,3.19281888,4127.3,4127.1,3.2078]
[1760362994037,3.2833,4127.3,4127.2,0.29]
[1760362994238,6.47611888,4127.6,4127.5,0.43575]
[1760362994445,3.2833,4128.5,4127.5,3.2078]
[1760362994745,3.2833,4128.5,4128.1,0.43568]
[1760362995043,3.2078,4129.6,4128.2,0.29]
[1760362995044,4.6552,4129.2,4128.2,0.29]
[1760362995239,0.00296424,4129.4,4128.7,3.2078]
[1760362995549,3.64815079,4129.3,4128.8,0.29]
[1760362995845,0.43852424,4129.4,4129.2,3.2078]
[1760362996047,0.43852424,4129.4,4127.6,1.08936]
[1760362996048,3.5644,4129.3,4128.5,3.2078]
[1760362996238,3.21258079,4129.2,4129.1,3.2078]
[1760362996435,0.272,4129.3,4129.2,0.43557]
[1760362996839,0.272,4129.3,4129.1,0.29]
[1760362997142,0.272,4129.3,4129.1,0.72558]
[1760362997336,0.272,4129.3,4129.0,0.43559]
[1760362997337,3.2924,4129.2,4129.0,0.43559]
[1760362997537,3.09195369,4129.2,4128.0,3.2078]
[1760362997749,3.2078,4128.9,4128.0,3.2078]
[1760362998042,3.2078,4128.9,4128.1,0.29]
[1760362998043,3.2924,4128.2,4128.1,0.29]
[1760362998243,3.09195369,4128.8,4128.6,0.43564]
[1760362998438,3.09195369,4128.8,4128.0,3.2078]
[1760362998439,3.21076424,4129.4,4128.7,0.29]
[1760362998648,3.2924,4129.0,4128.8,0.29]
[1760362998949,3.21076424,4129.4,4128.8,0.29]
[1760362998950,3.14566168,4129.2,4129.0,0.43559]
[1760362999141,0.00296424,4129.4,4129.2,3.60957]
[1760362999338,1e-05,4129.3,4129.2,3.89957]
[1760362999541,3.2078,4131.0,4129.4,0.43555]
[1760362999748,3.2078,4131.0,4129.2,0.29]
[1760362999749,3.2078,4131.0,4130.2,3.2078]
[1760363000047,3.2924,4130.3,4130.2,3.2078]
[1760363000349,0.43544,4130.5,4130.2,3.4978]
[1760363000551,0.00208812,4130.5,4130.2,3.4978]
[1760363000752,0.43545,4130.4,4130.2,3.4978]
[1760363001053,0.00208812,4130.5,4130.2,3.4978]
[1760363001253,0.00208812,4130.5,4130.3,0.29]
[1760363001448,0.00208812,4130.5,4130.3,0.72545]
[1760363001648,0.00208812,4130.5,4130.3,0.29]
[1760363002053,0.00208812,4130.5,4130.3,0.72546]
[1760363002249,0.00208812,4130.5,4130.4,3.174]
[1760363002443,3.2078,4132.1,4130.5,1.08859]
[1760363002747,3.2078,4132.1,4130.4,0.002941]
[1760363002748,3.2924,4132.4,4131.2,3.2078]
[1760363002949,0.43534,4131.4,4131.3,0.29]
[1760363003144,15.26149,4132.5,4131.3,0.29]
[1760363003145,3.13321602,4132.2,4131.3,0.29]
[1760363003346,3.72773,4131.5,4131.4,0.29]
[1760363003541,3.72773,4131.5,4130.6,3.2078]
[1760363003542,0.43535,4131.3,4130.6,3.2078]
[1760363003748,0.00269117,4131.5,4131.4,0.43534]
[1760363003945,3.2078,4133.1,4132.1,3.174]
[1760363004146,3.2078,4133.1,4131.3,1.08838]
[1760363004147,3.2924,4132.3,4132.2,0.29]
[1760363004341,3.2924,4131.8,4130.8,3.2078]
[1760363004547,3.2924,4131.8,4130.4,0.438391]
[1760363004548,3.2924,4130.5,4130.4,0.002941]
[1760363004752,3.2924,4130.5,4130.4,0.292941]
[1760363004948,3.29544087,4130.5,4130.4,0.292941]
[1760363005156,0.00304087,4130.5,4130.4,0.292941]
[1760363006050,3.2078,4132.1,4130.8,3.174]
[1760363006251,3.2078,4132.1,4131.5,0.43532]
[1760363006553,3.16307503,4132.5,4131.8,1.08826]
[1760363006751,3.2924,4134.4,4133.2,0.43515]
[1760363006752,3.2078,4134.1,4133.2,0.43515]
[1760363006949,0.22237293,4133.3,4133.2,3.93295]
[1760363007451,3.2078,4135.1,4133.3,1.08786]
[1760363007658,3.2924,4135.0,4134.2,3.2078]
[1760363007855,3.1234703,4135.0,4134.3,0.29]
[1760363008043,3.72728,4135.8,4134.7,3.6428]
[1760363008248,3.2924,4135.8,4135.2,3.2078]
[1760363008447,3.2924,4135.8,4135.3,0.29]
[1760363008448,0.43492,4135.4,4135.3,0.29]
[1760363008654,0.43497,4134.9,4134.7,0.00184529]
[1760363008853,3.72737,4134.9,4134.7,0.00184529]
[1760363009054,6.46154751,4134.8,4133.8,3.2078]
[1760363009255,0.43504,4134.4,4133.9,0.29]
[1760363009553,1.08731,4135.4,4133.9,0.29]
[1760363009554,2.67845751,4135.0,4134.3,3.2078]
[1760363009761,0.0027081,4135.8,4135.7,0.43489]
[1760363009950,0.0027081,4135.8,4135.7,3.93446014]
[1760363010453,8.1e-06,4135.8,4135.7,3.93446014]
[1760363010752,4.4611,4138.8,4137.7,0.43468]
[1760363010955,4.4611,4138.8,4137.7,3.4968]
[1760363011150,3.3144,4137.8,4137.7,0.289]
[1760363011351,3.2924,4137.1,4136.2,3.2078]
[1760363011545,3.2078,4137.0,4136.4,0.43482]
[1760363011750,3.2078,4137.0,4136.3,0.289]
[1760363011751,6.48882323,4137.0,4136.6,0.43479]
[1760363012057,0.00290708,4137.0,4136.7,0.289]
[1760363012256,0.00290708,4137.0,4136.9,3.2078]
[1760363012452,0.00290708,4137.0,4136.7,0.72378]
[1760363012453,3.2924,4136.9,4136.7,0.289]
[1760363012649,3.2924,4136.9,4136.3,3.2078]
[1760363012650,0.43477,4136.9,4136.3,3.2078]
[1760363012853,3.21070708,4137.0,4136.4,0.289]
[1760363012854,3.50843859,4136.8,4136.4,0.289]
[1760363013050,3.50843859,4136.8,4135.7,0.43766014]
[1760363013051,3.2924,4136.7,4136.5,0.289]
[1760363013355,0.00290708,4137.0,4136.6,0.289]
[1760363013545,3.2924,4136.9,4136.6,0.289]
[1760363014059,0.00290708,4137.0,4136.6,0.289]
[1760363014453,3.29530708,4137.0,4136.6,0.289]
[1760363014651,0.00290708,4137.0,4136.6,0.289]
[1760363014958,6.5002,4136.7,4136.6,0.289]
[1760363015254,6.5002,4136.7,4135.7,0.00277014]
[1760363015255,3.2924,4135.8,4135.7,0.29177014]
[1760363015657,6.39379886,4135.8,4135.7,0.29177014]
[1760363015863,1.2533,4135.2,4134.1,3.2078]
[1760363016055,3.64283,4134.5,4134.2,0.289]
[1760363016252,0.43504,4134.3,4134.2,0.289]
[1760363016452,3.2924,4134.3,4134.2,0.289]
[1760363016651,3.2078,4134.5,4134.2,0.289]
[1760363016652,6.5002,4134.5,4134.2,0.289]
[1760363016853,3.2924,4134.3,4134.2,0.2912755]
[1760363017053,6.49958253,4134.3,4134.2,0.2912755]
[1760363017257,3.2924,4134.3,4134.2,0.2912755]
[1760363017558,3.2078,4134.5,4134.2,0.2912755]
[1760363017761,0.43503,4134.4,4134.2,0.2912755]
[1760363017949,0.43503,4134.4,4133.2,3.2078]
[1760363017950,4.98077,4134.0,4133.9,1e-08]
[1760363018152,3.2924,4133.4,4132.1,3.2078]
[1760363018450,3.12801752,4133.3,4133.0,3.2078]
[1760363018655,3.12801752,4133.3,4133.1,0.289]
[1760363018862,2.17384,4136.9,4133.8,0.43509]
[1760363018863,3.2924,4134.7,4133.8,0.43509]
[1760363019058,3.2924,4134.7,4133.9,3.4968]
[1760363019059,3.29532786,4134.7,4133.9,3.4968]
[1760363019256,3.2078,4134.3,4133.9,0.289]
[1760363019459,3.12801752,4134.6,4133.9,3.4968]
[1760363019661,0.00292786,4134.7,4134.2,0.43505]
[1760363019854,0.00292786,4134.7,4134.5,0.43501]
[1760363020062,0.00292786,4134.7,4134.5,0.43502]
[1760363020256,0.00292786,4134.7,4134.6,0.289]
[1760363020451,0.00292786,4134.7,4134.6,3.4968]
[1760363020660,3.2078,4135.5,4135.4,0.43492]
[1760363020957,3.2924,4136.1,4136.0,0.43486]
[1760363021158,3.2924,4136.1,4136.0,0.72386]
[1760363021353,3.2924,4136.9,4136.0,3.4968]
[1760363021560,4.5457,4137.6,4137.3,0.43471]
[1760363021758,4.5457,4137.6,4137.4,0.72371]
[1760363021759,6.42617242,4137.5,4137.4,0.72371]
[1760363021963,0.00206718,4137.6,4137.4,0.72371]
[1760363022164,3.2924,4138.3,4137.7,0.43468]
[1760363022464,3.2078,4138.5,4138.4,0.43461]
[1760363022674,1.2533,4138.8,4138.7,0.43457]
[1760363022970,1.2533,4138.8,4138.4,0.289]
[1760363022971,3.2924,4138.7,4138.4,0.289]
[1760363023167,3.2924,4138.7,4138.5,0.4346]
[1760363023363,0.00210393,4138.7,4138.6,3.2078]
[1760363023574,0.00210393,4138.7,4138.5,0.4346]
[1760363023768,0.22,4139.3,4138.6,3.2078]
[1760363024170,3.2924,4138.7,4138.4,0.289]
[1760363024362,3.2924,4138.5,4138.4,0.289]
[1760363024669,0.43466,4137.9,4137.3,0.00279731]
[1760363024867,3.15786265,4138.5,4137.3,0.00279731]
[1760363024868,3.2078,4138.0,4137.4,0.289]
[1760363025175,3.15786265,4137.8,4137.4,0.289]
[1760363025375,3.4025,4137.8,4137.4,0.289]
[1760363025670,1.08657,4138.3,4137.7,3.2078]
[1760363026062,1.2751,4137.6,4136.5,0.4348]
[1760363026263,1.2751,4137.6,4135.9,3.2078]
[1760363026264,3.2078,4137.5,4136.1,3.2078]
[1760363026466,3.20980123,4138.5,4137.3,0.8746]
[1760363026661,0.00200123,4138.5,4137.7,3.2078]
[1760363026868,3.13422348,4138.4,4137.7,3.2078]
[1760363027176,3.4025,4137.8,4137.7,0.00303957]
[1760363027575,6.53672348,4137.8,4137.7,0.29203957]
[1760363027971,3.4025,4137.8,4137.7,0.29203957]
[1760363028182,0.43462,4138.3,4137.7,0.72670957]
[1760363028373,3.60321,4138.4,4137.7,0.72670957]
[1760363028574,6.29911469,4138.4,4138.0,3.2078]
[1760363028776,0.00200123,4138.5,4138.0,3.64244]
[1760363028980,0.00200123,4138.5,4138.0,4.0814]
[1760363029282,0.00200123,4138.5,4138.0,3.2078]
[1760363029582,0.00200123,4138.5,4138.3,0.43461]
[1760363029882,0.22,4139.3,4138.0,3.2078]
[1760363029883,0.22,4139.3,4138.5,0.4346]
[1760363030085,0.22,4139.3,4139.2,0.43452]
[1760363030277,0.22,4139.3,4139.2,0.72252]
[1760363030883,2.33911,4141.2,4139.6,1.08619]
[1760363030884,3.64214,4141.0,4139.6,1.08619]
[1760363031074,1.68761,4141.2,4140.8,0.43435]
[1760363031280,1.2533,4141.2,4140.9,0.72234]
[1760363031478,1.2533,4141.2,4140.9,0.288]
[1760363031681,3.1686,4141.7,4140.9,0.288]
[1760363031882,3.60293,4141.1,4140.9,0.288]
[1760363032085,3.2078,4141.5,4140.9,0.288]
[1760363032086,6.3764,4141.5,4140.9,0.29067648]
[1760363032385,3.1686,4141.0,4140.9,0.29067648]
[1760363032788,9.5800971,4141.0,4140.9,0.29067648]
[1760363032978,9.5800971,4141.0,4139.3,3.2078]
[1760363032979,0.43448,4139.7,4139.3,3.2078]
[1760363033282,3.1686,4140.2,4139.4,0.288]
[1760363033479,4.5006,4140.4,4139.4,3.4958]
[1760363033675,1.332,4140.4,4140.1,3.2078]
[1760363033875,3.1686,4140.3,4140.2,0.288]
[1760363034290,3.1686,4141.0,4140.4,0.43439]
[1760363034588,3.1686,4141.0,4140.3,0.4344]
[1760363034890,3.1686,4141.4,4140.7,3.64216]
[1760363035082,0.43609886,4141.7,4140.8,0.288]
[1760363035083,3.17042886,4141.7,4140.8,0.288]
[1760363035385,0.00182886,4141.7,4141.6,0.43427]
[1760363035582,3.1686,4142.5,4141.7,0.43425]
[1760363035888,4.4437,4142.4,4141.6,0.288]
[1760363036185,6.35388313,4142.3,4141.6,0.288]
[1760363036375,6.78808313,4142.3,4141.6,0.288]
[1760363036579,3.1711828,4142.3,4141.6,0.288]
[1760363036786,3.1686,4142.0,4141.6,0.288]
[1760363037082,0.0025828,4142.3,4141.6,0.288]
[1760363037083,0.0025828,4142.3,4142.1,0.43422]
[1760363037286,3.1686,4143.1,4142.7,0.43416]
[1760363037583,3.1686,4143.9,4142.7,0.43416]
[1760363037782,3.1686,4143.9,4143.6,0.43405]
[1760363037988,3.2078,4145.4,4143.7,0.288]
[1760363038177,0.42426534,4145.2,4145.0,0.43391]
[1760363038380,0.00229413,4145.2,4145.1,0.7219]
[1760363038580,3.17089413,4145.2,4145.1,0.7219]
[1760363038985,6.31684236,4145.2,4145.1,0.7219]
[1760363039185,1.332,4144.8,4144.7,1.08485]
[1760363039377,4.5006,4144.8,4144.7,0.92354064]
[1760363039582,4.5006,4144.8,4144.3,1.08497]
[1760363039583,4.5006,4144.8,4144.3,0.288]
[1760363039778,4.92062785,4144.8,4144.3,0.288]
[1760363039986,3.1686,4144.5,4143.6,3.2078]
[1760363040190,3.1686,4144.5,4143.7,0.288]
[1760363040380,3.24434673,4144.6,4143.7,0.288]
[1760363040381,0.03654673,4144.6,4144.4,0.99667]
[1760363040686,0.32029413,4145.2,4145.1,0.5627]
[1760363040884,3.2078,4146.2,4145.1,4.0585]
[1760363041081,0.022,4147.8,4145.1,4.0585]
[1760363041082,3.2078,4146.7,4145.6,3.2078]
[1760363041282,3.1686,4147.1,4145.6,3.2078]
[1760363041283,3.1686,4147.1,4145.7,0.288]
[1760363041589,3.1686,4146.9,4145.7,3.4958]
[1760363041789,3.1686,4145.9,4145.6,0.288]
[1760363041979,1.332,4146.0,4143.9,3.2078]
[1760363041980,3.1686,4145.3,4143.9,3.2078]
[1760363042186,3.1686,4144.2,4144.0,0.288]
[1760363042386,3.1686,4143.9,4143.6,0.00283984]
[1760363042581,3.1686,4142.8,4142.1,3.2078]
[1760363042794,3.1686,4142.8,4141.3,3.2535]
[1760363042795,3.1686,4142.3,4140.9,3.2078]
[1760363042985,3.1686,4142.3,4141.0,0.288]
[1760363043484,0.43424,4142.0,4141.0,0.28978564]
[1760363043787,3.2078,4141.7,4141.0,0.28978564]
[1760363043989,3.1686,4141.6,4141.0,0.00178564]
[1760363044183,1.332,4142.4,4141.0,0.00178564]
[1760363044184,3.2078,4141.1,4141.0,0.00178564]
[1760363044382,0.43432,4141.2,4141.0,0.00178564]
[1760363044684,3.2078,4141.1,4141.0,0.00178564]
[1760363044893,6.34210989,4141.1,4141.0,0.00178564]
[1760363045184,3.1686,4143.5,4141.0,6.46308564]
[1760363045395,3.1686,4143.5,4142.2,3.2078]
[1760363045579,3.2078,4142.5,4142.3,0.288]
[1760363045787,3.60278,4142.5,4142.4,0.288]
[1760363046086,3.1686,4142.2,4142.1,0.288]
[1760363046283,3.1686,4141.8,4141.7,0.288]
[1760363046485,3.1686,4141.9,4141.1,0.288]
[1760363046784,6.31544772,4142.2,4141.1,0.288]
[1760363046785,3.2078,4141.6,4141.1,0.288]
[1760363047090,3.1686,4142.0,4141.2,0.4343]
[1760363047284,3.1686,4142.0,4141.1,0.288]
[1760363047483,3.2078,4141.5,4141.1,0.288]
[1760363047785,6.37088231,4141.4,4141.1,0.288]
[1760363047991,4.93491,4141.2,4141.1,0.288]
[1760363048183,4.5006,4141.2,4141.1,0.288]
[1760363048579,3.1686,4141.0,4140.3,0.287]
[1760363048785,3.1686,4140.3,4138.3,3.2078]
[1760363048992,3.1686,4139.1,4138.8,0.43456]
[1760363049194,3.2078,4139.2,4138.4,0.287]
[1760363049592,3.20963325,4139.2,4138.4,0.28915742]
[1760363050090,6.3415701,4139.1,4138.4,0.28915742]
[1760363050293,3.2078,4138.7,4138.4,0.28915742]
[1760363050688,3.1686,4138.5,4138.4,0.28915742]
[1760363051299,6.25151788,4138.5,4138.4,0.28915742]
[1760363051492,6.25151788,4138.5,4136.2,1.08709]
[1760363051493,3.36991788,4138.5,4136.5,0.4348]
[1760363051692,4.5006,4137.6,4136.9,3.2078]
[1760363051889,4.5006,4137.6,4136.7,0.43478]
[1760363052090,4.5006,4137.6,4136.9,3.2078]
[1760363052398,3.1686,4138.3,4137.6,0.43468]
[1760363052586,3.60232382,4137.5,4137.0,0.287]
[1760363052786,3.16762382,4137.5,4137.0,0.287]
[1760363052996,3.1686,4137.4,4137.1,0.43474]
[1760363053190,3.1686,4137.5,4137.0,0.72175]
[1760363053499,3.16762382,4137.5,4137.0,0.287]
[1760363053696,3.2078,4137.1,4137.0,0.287]
[1760363053890,3.1686,4137.0,4135.8,3.2078]
[1760363054088,3.1686,4136.3,4135.5,3.4948]
[1760363054593,6.3764,4137.1,4136.3,0.43483]
[1760363054792,6.3764,4137.1,4136.4,0.287]
[1760363054793,0.43476,4137.0,4136.4,0.287]
[1760363054993,0.43478,4136.9,4136.4,0.28884541]
[1760363055193,3.1686,4136.8,4136.4,0.28884541]
[1760363055501,3.08279285,4136.9,4136.7,3.2078]
[1760363055502,3.2896,4136.9,4136.7,3.2078]
[1760363055795,0.00307684,4137.0,4136.4,0.28884541]
[1760363056001,3.29267684,4137.0,4136.4,0.28884541]
[1760363056198,3.07537592,4136.9,4136.4,0.28884541]
[1760363056406,3.2896,4136.5,4136.4,0.28884541]
[1760363056699,3.2896,4136.5,4135.9,0.287]
[1760363056700,3.2896,4136.0,4135.9,0.287]
[1760363057092,6.36363961,4136.0,4135.9,0.287]
[1760363057596,6.36363961,4136.0,4135.9,0.28970977]
[1760363057897,3.21087684,4137.0,4135.9,0.28970977]
[1760363058094,3.2896,4136.9,4136.0,3.2078]
[1760363058296,3.17178373,4136.3,4135.9,0.28970977]
[1760363058591,3.21087684,4137.0,4135.9,0.28970977]
[1760363058796,3.2896,4136.9,4136.0,3.2078]
[1760363059100,3.2896,4136.9,4135.9,0.28970977]
[1760363059101,3.2896,4136.0,4135.9,0.28970977]
[1760363059298,3.2896,4135.9,4135.2,0.24182335]
[1760363059600,3.0779657,4135.8,4135.2,0.24182335]
[1760363059905,1.2816,4136.4,4135.2,0.24182335]
[1760363059906,0.8457234,4138.9,4137.3,3.2078]
[1760363060101,3.2896,4140.3,4138.8,3.2078]
[1760363060299,1.2816,4140.4,4137.8,1.08669]
[1760363060300,3.20780684,4140.2,4139.9,3.2078]
[1760363060492,3.0779657,4140.2,4139.9,3.2078]
[1760363060689,3.0779657,4140.2,4139.4,0.28699316]
[1760363060690,3.2896,4140.0,4139.4,0.28699316]
[1760363060891,3.2896,4139.4,4138.8,0.287]
[1760363061102,3.2896,4138.7,4138.2,0.287]
[1760363061296,1.2816,4138.8,4138.2,0.287]
[1760363061598,6.4974,4138.5,4138.0,3.2078]
[1760363061797,3.2896,4138.4,4138.0,3.2078]
[1760363062102,3.2896,4138.3,4138.0,3.21066647]
[1760363062398,3.13615125,4138.4,4137.5,3.4948]
[1760363062399,4.5712,4137.6,4137.5,3.4948]
[1760363062707,4.5712,4137.6,4137.5,0.287]
[1760363063500,7.65079183,4137.6,4137.5,0.28954968]
[1760363063700,7.65079183,4137.6,4137.5,0.00254968]
[1760363064601,4.5712,4137.6,4137.5,0.00254968]
[1760363064790,1.2816,4138.8,4138.0,0.43465]
[1760363064991,1.2816,4138.8,4138.3,0.43461]
[1760363065200,1.2816,4138.8,4137.6,1.08673]
[1760363065201,3.0754858,4138.7,4138.6,0.43459]
[1760363065401,1.2816,4138.8,4138.6,0.43459]
[1760363065597,0.24298732,4138.8,4138.7,0.287]
[1760363065801,3.29190227,4140.0,4138.7,0.287]
[1760363066102,7.66838754,4138.8,4138.7,0.287]
[1760363066297,7.66838754,4138.8,4138.7,0.72158]
[1760363066298,3.09718754,4138.8,4138.7,0.72158]
[1760363066493,0.03305344,4139.4,4139.2,0.43452]
[1760363066694,0.03305344,4139.4,4139.3,3.4948]
[1760363067096,3.2078,4140.5,4139.3,3.4948]
[1760363067097,3.2896,4141.6,4139.9,1.0414]
[1760363067302,6.4974,4142.3,4141.5,0.43428]